fUSD/lending_fUSD_20260628
["ID","MTS","AMOUNT","RATE_DAILY","PERIOD"]
[426572524,1782611131000,-250.0,0.00021009,2]
[426572534,1782611131000,-250.0,0.00022827,2]
[426572535,1782611131000,-151.0,0.000229,2]
[426572540,1782611131000,-216.51184279,0.00023305,2]
[426572542,1782611131000,-1033.31141505,0.00023358,2]
[426572541,1782611131000,-150.0,0.0002335,2]
[426572533,1782611131000,-151.0,0.0002269,2]
[426572538,1782611131000,-151.0,0.0002311,2]
[426572537,1782611131000,-250.0,0.00023054,2]
[426572536,1782611131000,-302.41969608,0.00023054,2]
[426572539,1782611131000,-636.6989186,0.00023305,2]
[426572546,1782611237000,-1356.97593266,0.00020895,2]
[426572544,1782611237000,-151.18,0.00017551,2]
[426572545,1782611237000,-250.0,0.00019306,2]
[426572547,1782611239000,-2810.98764486,0.00020895,2]
[426572548,1782611316000,299.91,0.00037292,120]
[426572550,1782611349000,-639.49182118,0.00020895,2]
[426572549,1782611349000,-3855.0090636,0.00020605,2]
[426572551,1782611349000,-3373.43,0.00021273,2]
[426572553,1782611349000,-1004.21726158,0.00022381,2]
[426572555,1782611349000,-1944.18733242,0.00023241,2]
[426572552,1782611349000,-150.0,0.00022135,2]
[426572554,1782611349000,-885.97665142,0.0002282,2]
[426572560,1782611354000,-8856.50041665,0.00023358,2]
[426572559,1782611354000,-1106.72511558,0.00023241,2]
[426572558,1782611354000,-250.0,0.00022666,2]
[426572557,1782611354000,-381.38387378,0.00021458,2]
[426572556,1782611354000,-250.0,0.0002075,2]
[426572561,1782611363000,-775.88314443,0.0002335,2]
[426572564,1782611363000,-499.99476511,0.00023402,2]
[426572563,1782611363000,-160.0,0.00023387,2]
[426572562,1782611363000,-7623.0564154,0.00023358,2]
[426572565,1782611378000,151.0,0.00018,2]
[426572566,1782611380000,168.5848378,0.0002335,2]
[426572567,1782611399000,5346.7108669,0.00020605,2]
[426572599,1782611432000,-151.0,0.00025242,7]
[426572608,1782611432000,-500.0,0.00025244,2]
[426572607,1782611432000,-235.39962305,0.00025244,2]
[426572606,1782611432000,-500.0,0.00025244,2]
[426572602,1782611432000,-503.79933474,0.00025244,2]
[426572603,1782611432000,-150.15283085,0.00025244,2]
[426572601,1782611432000,-1001.96444778,0.00025242,2]
[426572609,1782611432000,-500.0,0.00025244,2]
[426572598,1782611432000,-151.0,0.00025241,7]
[426572604,1782611432000,-150.0,0.00025244,2]
[426572605,1782611432000,-500.0,0.00025244,2]
[426572611,1782611432000,-571.29536227,0.00025244,2]
[426572610,1782611432000,-218.80028665,0.00025244,2]
[426572612,1782611432000,-500.0,0.00025244,2]
[426572613,1782611432000,-500.0,0.00025244,2]
[426572620,1782611432000,-500.0,0.00025244,2]
[426572619,1782611432000,-500.0,0.00025244,2]
[426572621,1782611432000,-503.39901301,0.00025244,2]
[426572614,1782611432000,-500.0,0.00025244,2]
[426572617,1782611432000,-500.0,0.00025244,2]
[426572615,1782611432000,-500.0,0.00025244,2]
[426572618,1782611432000,-500.0,0.00025244,2]
[426572616,1782611432000,-254.69883486,0.00025244,2]
[426572623,1782611432000,-500.0,0.00025244,2]
[426572633,1782611432000,-500.0,0.00025244,2]
[426572597,1782611432000,-151.0,0.00025241,7]
[426572594,1782611432000,-999.99,0.00025006,2]
[426572579,1782611432000,-151.0,0.0002497,2]
[426572593,1782611432000,-1495.03,0.00025006,2]
[426572569,1782611432000,-257.91896649,0.00024239,2]
[426572570,1782611432000,-883.65,0.00024239,2]
[426572568,1782611432000,-437.62810829,0.00024239,2]
[426572572,1782611432000,-19320.13,0.00024309,2]
[426572571,1782611432000,-150.0,0.00024274,2]
[426572581,1782611432000,-299.99,0.00024979,7]
[426572580,1782611432000,-692.9304992,0.00024979,2]
[426572582,1782611432000,-8273.93,0.00024979,2]
[426572583,1782611432000,-154.0,0.00025005,2]
[426572573,1782611432000,-5000.0,0.00024402,2]
[426572575,1782611432000,-408.23,0.00024658,2]
[426572574,1782611432000,-312.8576959,0.00024506,7]
[426572576,1782611432000,-883.65,0.00024845,2]
[426572578,1782611432000,-151.0,0.00024962,2]
[426572577,1782611432000,-151.0,0.00024962,2]
[426572585,1782611432000,-150.99,0.00025005,2]
[426572584,1782611432000,-1658.72,0.00025005,2]
[426572595,1782611432000,-6247.39538194,0.00025145,2]
[426572596,1782611432000,-315.47,0.00025208,2]
[426572586,1782611432000,-9999.99,0.00025005,2]
[426572590,1782611432000,-2948.0814,0.00025006,14]
[426572588,1782611432000,-1456.52049194,0.00025006,14]
[426572587,1782611432000,-825.63640937,0.00025006,14]
[426572624,1782611432000,-500.0,0.00025244,2]
[426572591,1782611432000,-9999.99,0.00025006,2]
[426572589,1782611432000,-2178.86754718,0.00025006,14]
[426572625,1782611432000,-500.0,0.00025244,2]
[426572592,1782611432000,-68464.26,0.00025006,2]
[426572622,1782611432000,-500.0,0.00025244,2]
[426572666,1782611432000,-500.0,0.00025244,2]
[426572667,1782611432000,-500.0,0.00025244,2]
[426572656,1782611432000,-500.0,0.00025244,2]
[426572658,1782611432000,-500.0,0.00025244,2]
[426572662,1782611432000,-500.0,0.00025244,2]
[426572661,1782611432000,-500.0,0.00025244,2]
[426572659,1782611432000,-500.0,0.00025244,2]
[426572664,1782611432000,-500.0,0.00025244,2]
[426572660,1782611432000,-500.0,0.00025244,2]
[426572663,1782611432000,-500.0,0.00025244,2]
[426572668,1782611432000,-438.36353443,0.00025244,2]
[426572669,1782611432000,-500.0,0.00025244,2]
[426572665,1782611432000,-500.0,0.00025244,2]
[426572670,1782611432000,-500.0,0.00025244,2]
[426572671,1782611432000,-500.0,0.00025244,2]
[426572677,1782611432000,-4999.99,0.00025245,2]
[426572674,1782611432000,-500.0,0.00025244,2]
[426572678,1782611432000,-9999.99,0.00025245,2]
[426572676,1782611432000,-3972.09,0.00025245,2]
[426572675,1782611432000,-161.44,0.00025245,2]
[426572673,1782611432000,-500.0,0.00025244,2]
[426572679,1782611432000,-9999.99,0.00025245,2]
[426572681,1782611432000,-692.9304992,0.00025253,2]
[426572680,1782611432000,-197.42,0.00025248,2]
[426572682,1782611432000,-452.436851,0.00025431,2]
[426572626,1782611432000,-500.0,0.00025244,2]
[426572672,1782611432000,-500.0,0.00025244,2]
[426572657,1782611432000,-500.0,0.00025244,2]
[426572600,1782611432000,-151.0,0.00025242,7]
[426572648,1782611432000,-500.0,0.00025244,2]
[426572628,1782611432000,-500.0,0.00025244,2]
[426572632,1782611432000,-500.0,0.00025244,2]
[426572629,1782611432000,-500.0,0.00025244,2]
[426572630,1782611432000,-500.0,0.00025244,2]
[426572627,1782611432000,-500.0,0.00025244,2]
[426572631,1782611432000,-500.0,0.00025244,2]
[426572643,1782611432000,-500.0,0.00025244,2]
[426572635,1782611432000,-500.0,0.00025244,2]
[426572644,1782611432000,-500.0,0.00025244,2]
[426572634,1782611432000,-500.0,0.00025244,2]
[426572639,1782611432000,-500.0,0.00025244,2]
[426572638,1782611432000,-500.0,0.00025244,2]
[426572640,1782611432000,-500.0,0.00025244,2]
[426572636,1782611432000,-500.0,0.00025244,2]
[426572637,1782611432000,-500.0,0.00025244,2]
[426572649,1782611432000,-500.0,0.00025244,2]
[426572651,1782611432000,-500.0,0.00025244,2]
[426572641,1782611432000,-500.0,0.00025244,2]
[426572647,1782611432000,-500.0,0.00025244,2]
[426572653,1782611432000,-500.0,0.00025244,2]
[426572655,1782611432000,-500.0,0.00025244,2]
[426572652,1782611432000,-500.0,0.00025244,2]
[426572654,1782611432000,-500.0,0.00025244,2]
[426572645,1782611432000,-500.0,0.00025244,2]
[426572646,1782611432000,-500.0,0.00025244,2]
[426572642,1782611432000,-220.32245343,0.00025244,2]
[426572650,1782611432000,-500.0,0.00025244,2]
[426572687,1782611433000,-162.78835443,0.00025545,2]
[426572689,1782611433000,-500.0,0.00025674,2]
[426572690,1782611433000,-3188.4268155,0.00025675,2]
[426572688,1782611433000,-2500.0,0.00025575,2]
[426572691,1782611433000,-59864.83715312,0.00025675,2]
[426572685,1782611433000,-3855.0090636,0.00025529,2]
[426572683,1782611433000,-883.65,0.00025451,2]
[426572684,1782611433000,-692.9304992,0.00025527,2]
[426572692,1782611433000,-15234.07165224,0.00025675,2]
[426572686,1782611433000,-5346.7108669,0.00025529,2]
[426572696,1782611433000,-2574.93626761,0.00025684,2]
[426572695,1782611433000,-3505.4958817,0.00025684,2]
[426572694,1782611433000,-476.75308579,0.00025675,2]
[426572693,1782611433000,-7040.36127174,0.00025675,2]
[426572697,1782611433000,-166.96323259,0.00025684,2]
[426572698,1782611433000,-160.0,0.00025716,2]
[426572700,1782611433000,-4426.17439427,0.0002573,2]
[426572701,1782611433000,-197.12277123,0.00025771,2]
[426572699,1782611433000,-381.28100443,0.0002573,2]
[426572702,1782611433000,-117.48856842,0.00025784,2]
[426572711,1782611438000,-256.1141623,0.00024274,2]
[426572712,1782611438000,-810.09651068,0.00024274,2]
[426572714,1782611438000,-603.79940387,0.00024999,2]
[426572713,1782611438000,-1649.22063691,0.00024274,2]
[426572716,1782611438000,-456.27143158,0.00025784,2]
[426572718,1782611438000,-95.6966137,0.00025784,2]
[426572717,1782611438000,-151.48,0.00025784,2]
[426572715,1782611438000,-500.0,0.00025674,2]
[426572729,1782611440000,-202.40098364,0.00025989,2]
[426572741,1782611440000,-883.65,0.00026057,2]
[426572744,1782611440000,-399.0,0.00026208,2]
[426572739,1782611440000,-200.0,0.00025998,2]
[426572742,1782611440000,-692.9304992,0.00026075,2]
[426572740,1782611440000,-200.0,0.00025999,2]
[426572738,1782611440000,-3365.37464697,0.0002599,2]
[426572733,1782611440000,-500.0,0.00025989,2]
[426572731,1782611440000,-178.40009773,0.00025989,2]
[426572730,1782611440000,-500.0,0.00025989,2]
[426572728,1782611440000,-621.45126909,0.00025899,2]
[426572720,1782611440000,-151.0,0.00025245,2]
[426572725,1782611440000,-185.26,0.00025784,2]
[426572727,1782611440000,-692.9304992,0.00025801,2]
[426572736,1782611440000,-385.13785706,0.00025989,2]
[426572726,1782611440000,-151.0,0.00025792,2]
[426572737,1782611440000,-384.01777984,0.00025989,2]
[426572734,1782611440000,-500.0,0.00025989,2]
[426572724,1782611440000,-151.0,0.00025784,2]
[426572723,1782611440000,-151.0,0.00025784,2]
[426572722,1782611440000,-55.3033863,0.00025784,2]
[426572721,1782611440000,-153.289313,0.00025675,2]
[426572745,1782611440000,-411.0,0.00026208,2]
[426572732,1782611440000,-500.0,0.00025989,2]
[426572743,1782611440000,-153.0,0.00026104,5]
[426572735,1782611440000,-500.0,0.00025989,2]
[426572746,1782611440000,-208.3578763,0.00026208,2]
[426572748,1782611440000,-1000.0,0.00026208,2]
[426572770,1782611440000,-375.29884009,0.00026328,2]
[426572769,1782611440000,-115.85409584,0.00026328,2]
[426572766,1782611440000,-233.18956194,0.00026328,2]
[426572767,1782611440000,-448.10711115,0.00026328,2]
[426572768,1782611440000,-63.05915417,0.00026328,2]
[426572765,1782611440000,-152.0,0.00026252,5]
[426572764,1782611440000,-797.23120966,0.00026224,2]
[426572772,1782611440000,-133.19152051,0.00026328,2]
[426572762,1782611440000,-416.66667,0.00026209,2]
[426572759,1782611440000,-416.66667,0.00026209,2]
[426572756,1782611440000,-151.0,0.00026209,2]
[426572771,1782611440000,-194.52535376,0.00026328,2]
[426572754,1782611440000,-1000.0,0.00026208,2]
[426572747,1782611440000,-1000.0,0.00026208,2]
[426572749,1782611440000,-1000.0,0.00026208,2]
[426572750,1782611440000,-1000.0,0.00026208,2]
[426572761,1782611440000,-416.66666,0.00026209,2]
[426572753,1782611440000,-1000.0,0.00026208,2]
[426572751,1782611440000,-1000.0,0.00026208,2]
[426572752,1782611440000,-1000.0,0.00026208,2]
[426572755,1782611440000,-409.0,0.00026209,2]
[426572757,1782611440000,-416.66666,0.00026209,2]
[426572758,1782611440000,-416.66667,0.00026209,2]
[426572760,1782611440000,-416.66667,0.00026209,2]
[426572763,1782611440000,-5450.16417224,0.00026224,2]
[426572789,1782611443000,-500.0,0.00026591,2]
[426572798,1782611443000,-151.0,0.00026592,2]
[426572788,1782611443000,-438.52009349,0.00026591,2]
[426572797,1782611443000,-151.0,0.00026592,2]
[426572796,1782611443000,-151.0,0.00026592,2]
[426572795,1782611443000,-151.0,0.00026592,2]
[426572791,1782611443000,-151.0,0.00026592,2]
[426572792,1782611443000,-151.0,0.00026592,2]
[426572787,1782611443000,-61.47990651,0.00026591,2]
[426572790,1782611443000,-500.0,0.00026591,2]
[426572786,1782611443000,-404.61009349,0.00026591,2]
[426572778,1782611443000,-394.24554247,0.00026331,2]
[426572785,1782611443000,-173.57483215,0.00026591,2]
[426572779,1782611443000,-406.89868148,0.00026333,2]
[426572782,1782611443000,-276.11401052,0.00026397,2]
[426572781,1782611443000,-621.45126901,0.00026355,2]
[426572776,1782611443000,-399.80305631,0.00026328,2]
[426572777,1782611443000,-160.32631997,0.00026329,2]
[426572780,1782611443000,-692.9304992,0.00026349,2]
[426572775,1782611443000,-55.00577408,0.00026328,2]
[426572783,1782611443000,-330.20607854,0.00026397,2]
[426572774,1782611443000,-151.0,0.00026328,2]
[426572794,1782611443000,-151.0,0.00026592,2]
[426572784,1782611443000,-155.13509201,0.00026587,7]
[426572800,1782611443000,-185.25,0.00026598,2]
[426572793,1782611443000,-151.0,0.00026592,2]
[426572799,1782611443000,-151.0,0.00026592,2]
[426572801,1782611443000,-151.0,0.00026602,2]
[426572825,1782611443000,-812.0,0.00027,2]
[426572824,1782611443000,-350.0,0.00026992,2]
[426572826,1782611443000,-150.0,0.00027,2]
[426572820,1782611443000,-151.0,0.000268,2]
[426572823,1782611443000,-692.9304992,0.00026897,2]
[426572821,1782611443000,-151.0,0.000268,2]
[426572819,1782611443000,-151.0,0.000268,2]
[426572818,1782611443000,-151.0,0.000268,2]
[426572817,1782611443000,-151.0,0.000268,2]
[426572816,1782611443000,-151.0,0.000268,2]
[426572815,1782611443000,-104348.97287869,0.000268,2]
[426572822,1782611443000,-621.45126901,0.0002681,2]
[426572814,1782611443000,-166.21,0.00026771,2]
[426572809,1782611443000,-692.9304992,0.00026623,2]
[426572813,1782611443000,-6247.3953819,0.00026763,2]
[426572802,1782611443000,-151.0,0.00026602,2]
[426572808,1782611443000,-292.22,0.00026614,2]
[426572804,1782611443000,-151.0,0.00026605,2]
[426572806,1782611443000,-151.0,0.00026605,2]
[426572803,1782611443000,-151.0,0.00026605,2]
[426572807,1782611443000,-151.0,0.00026614,2]
[426572810,1782611443000,-152.0,0.00026662,6]
[426572811,1782611443000,-883.65,0.00026663,2]
[426572812,1782611443000,-8132.36483234,0.00026693,2]
[426572805,1782611443000,-151.35,0.00026605,2]
[426572846,1782611444000,-152.0,0.00027483,8]
[426572849,1782611444000,-229.0,0.000275,7]
[426572847,1782611444000,-500.0,0.00027499,2]
[426572861,1782611444000,-151.0,0.00028091,7]
[426572850,1782611444000,-514.37089458,0.000275,7]
[426572848,1782611444000,-500.0,0.00027499,2]
[426572852,1782611444000,-353.65209408,0.0002761,2]
[426572851,1782611444000,-350.0,0.00027557,2]
[426572858,1782611444000,-350.0,0.00027996,2]
[426572857,1782611444000,-692.9304992,0.00027993,2]
[426572856,1782611444000,-152.0,0.00027894,9]
[426572862,1782611444000,-151.0,0.00028091,7]
[426572859,1782611444000,-2000.0,0.00028,2]
[426572860,1782611444000,-3617.0,0.00028051,5]
[426572865,1782611444000,-3357.0,0.00028102,5]
[426572854,1782611444000,-621.45126901,0.00027722,2]
[426572855,1782611444000,-6247.3953819,0.00027842,2]
[426572844,1782611444000,-151.0,0.00027427,2]
[426572833,1782611444000,-151.0,0.00027397,2]
[426572853,1782611444000,-692.9304992,0.00027719,2]
[426572831,1782611444000,-621.45126901,0.00027266,2]
[426572830,1782611444000,-350.0,0.00027187,2]
[426572828,1782611444000,-152.0,0.00027073,7]
[426572827,1782611444000,-161.0,0.00027,7]
[426572829,1782611444000,-692.9304992,0.00027171,2]
[426572832,1782611444000,-6247.3953819,0.00027303,2]
[426572843,1782611444000,-151.0,0.00027427,2]
[426572845,1782611444000,-692.9304992,0.00027445,2]
[426572837,1782611444000,-151.0,0.00027397,2]
[426572839,1782611444000,-896.41,0.00027397,10]
[426572842,1782611444000,-206.99,0.00027424,2]
[426572838,1782611444000,-296.767751,0.00027397,2]
[426572836,1782611444000,-151.0,0.00027397,2]
[426572840,1782611444000,-184.076007,0.00027397,7]
[426572835,1782611444000,-151.0,0.00027397,2]
[426572841,1782611444000,-150.03490182,0.00027397,30]
[426572834,1782611444000,-151.0,0.00027397,2]
[426572866,1782611444000,-621.45126901,0.00028177,2]
[426572880,1782611444000,-692.9304992,0.00028541,2]
[426572863,1782611444000,-151.0,0.00028091,7]
[426572888,1782611444000,-161.0,0.00028645,30]
[426572889,1782611444000,-160.0,0.00028645,30]
[426572896,1782611444000,-398.50258163,0.00028678,2]
[426572890,1782611444000,-158.0,0.00028645,30]
[426572891,1782611444000,-163.0,0.00028645,30]
[426572892,1782611444000,-158.99933998,0.00028646,30]
[426572893,1782611444000,-154.59197274,0.00028646,30]
[426572884,1782611444000,-155.0,0.00028645,30]
[426572894,1782611444000,-161.0,0.00028646,30]
[426572898,1782611444000,-152.0,0.00028714,11]
[426572899,1782611444000,-151.0,0.00028743,7]
[426572903,1782611444000,-355.66980868,0.00028816,2]
[426572901,1782611444000,-490.61,0.00028782,2]
[426572897,1782611444000,-425.78,0.00028695,30]
[426572900,1782611444000,-150.0,0.00028767,2]
[426572864,1782611444000,-151.0,0.00028091,7]
[426572895,1782611444000,-649.92418294,0.00028678,2]
[426572885,1782611444000,-160.0,0.00028645,30]
[426572902,1782611444000,-692.9304992,0.00028815,2]
[426572886,1782611444000,-162.0,0.00028645,30]
[426572868,1782611444000,-588.360341,0.000282,2]
[426572867,1782611444000,-150.0,0.000282,2]
[426572870,1782611444000,-573.72,0.00028245,2]
[426572869,1782611444000,-482.59,0.00028243,2]
[426572871,1782611444000,-151.0,0.00028245,2]
[426572887,1782611444000,-153.0,0.00028645,30]
[426572876,1782611444000,-6247.3953819,0.00028382,2]
[426572874,1782611444000,-151.0,0.00028364,7]
[426572873,1782611444000,-152.0,0.00028304,10]
[426572875,1782611444000,-151.0,0.00028364,7]
[426572872,1782611444000,-692.9304992,0.00028267,2]
[426572878,1782611444000,-3497.35848952,0.00028437,5]
[426572881,1782611444000,-210.0,0.000286,2]
[426572882,1782611444000,-621.45126901,0.00028633,2]
[426572883,1782611444000,-156.0,0.00028645,30]
[426572879,1782611444000,-350.0,0.00028535,2]
[426572877,1782611444000,-11.64151048,0.00028437,5]
[426572917,1782611446000,-175.8388605,0.00026591,2]
[426572918,1782611446000,-692.75695589,0.00028816,2]
[426572926,1782611446000,-500.0,0.000289,7]
[426572922,1782611446000,-151.0,0.000289,7]
[426572927,1782611446000,-500.0,0.000289,7]
[426572925,1782611446000,-500.0,0.000289,7]
[426572921,1782611446000,-151.0,0.000289,7]
[426572919,1782611446000,-952.07500025,0.00028827,2]
[426572923,1782611446000,-151.0,0.000289,7]
[426572924,1782611446000,-500.0,0.000289,7]
[426572928,1782611446000,-500.0,0.000289,7]
[426572931,1782611446000,-500.0,0.000289,7]
[426572929,1782611446000,-506.59,0.000289,7]
[426572930,1782611446000,-500.0,0.000289,7]
[426572920,1782611446000,-617.0,0.00028855,2]
[426572941,1782611447000,-500.0,0.000289,7]
[426572946,1782611447000,-500.0,0.000289,7]
[426572943,1782611447000,-500.0,0.000289,7]
[426572947,1782611447000,-500.0,0.000289,7]
[426572942,1782611447000,-500.0,0.000289,7]
[426572949,1782611447000,-500.0,0.000289,7]
[426572951,1782611447000,-500.0,0.000289,7]
[426572948,1782611447000,-500.0,0.000289,7]
[426572953,1782611447000,-500.0,0.000289,7]
[426572937,1782611447000,-500.0,0.000289,7]
[426572940,1782611447000,-500.0,0.000289,7]
[426572939,1782611447000,-500.0,0.000289,7]
[426572934,1782611447000,-500.0,0.000289,7]
[426572936,1782611447000,-500.0,0.000289,7]
[426572938,1782611447000,-500.0,0.000289,7]
[426572935,1782611447000,-500.0,0.000289,7]
[426572933,1782611447000,-500.0,0.000289,7]
[426572932,1782611447000,-500.0,0.000289,7]
[426572945,1782611447000,-500.0,0.000289,7]
[426572958,1782611447000,-500.0,0.000289,7]
[426572944,1782611447000,-500.0,0.000289,7]
[426572950,1782611447000,-500.0,0.000289,7]
[426572974,1782611447000,-14.86283309,0.000289,7]
[426572973,1782611447000,-500.0,0.000289,7]
[426572971,1782611447000,-500.0,0.000289,7]
[426572972,1782611447000,-500.0,0.000289,7]
[426572969,1782611447000,-500.0,0.000289,7]
[426572970,1782611447000,-500.0,0.000289,7]
[426572968,1782611447000,-233.4179262,0.000289,7]
[426572966,1782611447000,-500.0,0.000289,7]
[426572964,1782611447000,-500.0,0.000289,7]
[426572963,1782611447000,-500.0,0.000289,7]
[426572952,1782611447000,-500.0,0.000289,7]
[426572967,1782611447000,-266.5820738,0.000289,7]
[426572962,1782611447000,-500.0,0.000289,7]
[426572960,1782611447000,-262.14795946,0.000289,7]
[426572961,1782611447000,-500.0,0.000289,7]
[426572956,1782611447000,-500.0,0.000289,7]
[426572954,1782611447000,-500.0,0.000289,7]
[426572957,1782611447000,-500.0,0.000289,7]
[426572959,1782611447000,-237.85204054,0.000289,7]
[426572955,1782611447000,-500.0,0.000289,7]
[426572965,1782611447000,-500.0,0.000289,7]
[426572975,1782611462000,304.945499,0.00037292,120]
[426572976,1782611463000,193.0,0.00030137,120]
[426572977,1782611463000,272.42214322,0.00028144,120]
[426572980,1782611465000,502.20365201,0.00028188,120]
[426572979,1782611465000,500.0,0.00027397,120]
[426572978,1782611465000,500.0,0.00030136,120]
[426572981,1782611563000,11407.4187,0.00027297,120]
[426572983,1782611623000,168.24959949,0.00015,2]
[426572982,1782611623000,1140.53815043,0.00015,2]
[426572984,1782611632000,158.15763478,0.00037292,120]
[426572985,1782611645000,2446.43470193,0.00037292,120]
[426572987,1782611669000,762.15,0.00014925,2]
[426572988,1782611711000,187.0,0.00037292,120]
[426572989,1782611737000,-1440.37125764,0.00015,2]
[426572990,1782611749000,-1440.37125764,0.00015,2]
[426572991,1782611762000,-741.28832397,0.00015,2]
[426572992,1782611762000,56000.0,0.00037292,120]
[426572993,1782611774000,-741.28832397,0.00015,2]
[426572994,1782611774000,154.04334077,0.00037292,120]
[426572995,1782611786000,-408.0,0.00015,2]
[426572996,1782611798000,-408.0,0.00015,2]
[426572998,1782611810000,-507.28714995,0.00015,2]
[426572999,1782611823000,-507.28714995,0.00015,2]
[426573001,1782611835000,-300.0,0.00014999,2]
[426573002,1782611836000,18331.93965963,0.00037292,120]
[426573003,1782611837000,293.14005737,0.00037292,120]
[426573005,1782611848000,289.02433084,0.000149,2]
[426573006,1782611849000,170.21509084,0.00037292,120]
[426573008,1782611849000,181.87554914,0.00037292,120]
[426573009,1782611850000,165.36077538,0.00037292,120]
[426573010,1782611851000,151.18404946,0.00037292,120]
[426573012,1782611852000,186.8648841,0.0003,120]
[426573013,1782611854000,778.1209805,0.00037292,120]
[426573014,1782611855000,170.53074632,0.0003013,120]
[426573015,1782611856000,170.053292,0.00037292,120]
[426573016,1782611859000,153.24602212,0.00037292,120]
[426573018,1782611861000,150.98162482,0.00037292,120]
[426573017,1782611861000,387.90076918,0.00037292,120]
[426573019,1782611870000,177.49195244,0.000142,2]
[426573020,1782611888000,-1810.0,0.00015,2]
[426573021,1782612045000,1958.691772,0.00014924,2]
[426573023,1782612087000,152.61484481,0.000142,2]
[426573022,1782612087000,218.05545292,0.000142,2]
[426573025,1782612088000,234.8256732,0.000142,2]
[426573024,1782612088000,7.38515519,0.000142,2]
[426573027,1782612104000,741.400749,0.00037291,120]
[426573029,1782612105000,741.400749,0.00037291,120]
[426573028,1782612105000,741.400749,0.00037291,120]
[426573030,1782612106000,741.400749,0.00037291,120]
[426573032,1782612106000,741.400749,0.00037291,120]
[426573031,1782612106000,741.400749,0.00037291,120]
[426573034,1782612107000,741.400749,0.00037291,120]
[426573033,1782612107000,741.400749,0.00037291,120]
[426573037,1782612108000,741.400749,0.00037291,120]
[426573036,1782612108000,741.400749,0.00037291,120]
[426573035,1782612108000,741.400749,0.00037291,120]
[426573039,1782612109000,741.400749,0.00037291,120]
[426573038,1782612109000,741.400749,0.00037291,120]
[426573041,1782612110000,741.400749,0.00037291,120]
[426573040,1782612110000,741.400749,0.00037291,120]
[426573042,1782612111000,741.400749,0.00037291,120]
[426573043,1782612111000,741.400749,0.00037291,120]
[426573044,1782612111000,741.400749,0.00037291,120]
[426573046,1782612112000,741.400757,0.00037291,120]
[426573045,1782612112000,741.400749,0.00037291,120]
[426573049,1782612114000,151.0,0.00037291,120]
[426573048,1782612114000,151.0,0.00037291,120]
[426573047,1782612114000,151.0,0.00037291,120]
[426573051,1782612115000,151.0,0.00037291,120]
[426573050,1782612115000,151.0,0.00037291,120]
[426573052,1782612116000,277.444854,0.00037291,120]
[426573053,1782612129000,151.0,0.00037291,120]
[426573054,1782612130000,151.0,0.00037291,120]
[426573056,1782612130000,151.0,0.00037291,120]
[426573055,1782612130000,151.0,0.00037291,120]
[426573058,1782612131000,151.0,0.00037291,120]
[426573057,1782612131000,151.0,0.00037291,120]
[426573060,1782612132000,151.0,0.00037291,120]
[426573059,1782612132000,151.0,0.00037291,120]
[426573063,1782612133000,151.0,0.00037291,120]
[426573062,1782612133000,151.0,0.00037291,120]